bitfinex-derivatives/quotes_SOLF0:USTF0_20250823
["timestamp","ask_amount","ask_price","bid_price","bid_amount"]
[1755933485897,2.81,206.55,206.47,10.99706114]
[1755933486096,2.81,206.55,206.48,10.99706114]
[1755933486293,2.81,206.55,206.49,9.1405383]
[1755933486597,4.8441,206.53,206.5,9.1405383]
[1755933486797,4.8441,206.53,206.51,4.49071327]
[1755933486999,4.8441,206.53,206.52,4.49071327]
[1755933487598,4.8441,206.53,206.46,7.6254]
[1755933487805,4.8441,206.53,206.47,15.84063771]
[1755933487995,4.8441,206.53,206.49,2.78]
[1755933488197,4.8441,206.53,206.5,11.91927206]
[1755933488399,7.6535,206.55,206.52,2.78]
[1755933489506,2.81,206.55,206.49,2.78]
[1755933489703,2.81,206.55,206.5,7.26946141]
[1755933489902,2.81,206.55,206.51,7.26946141]
[1755933490102,2.81,206.55,206.51,2.78]
[1755933490305,2.81,206.55,206.47,2.78]
[1755933490503,2.81,206.55,206.48,9.13977579]
[1755933490702,2.81,206.55,206.49,9.13977579]
[1755933490902,0.0327546,206.54,206.5,4.49034333]
[1755933491103,2.81,206.53,206.47,2.78]
[1755933491305,2.81,206.53,206.48,9.13941598]
[1755933491505,2.81,206.53,206.5,2.78]
[1755933492508,7.6541,206.53,206.5,2.78]
[1755933493209,7.6541,206.53,206.51,4.48979263]
[1755933493409,7.6541,206.53,206.5,2.78]
[1755933493610,4.8443,206.52,206.5,2.78]
[1755933493804,4.8443,206.52,206.45,4.8457]
[1755933494010,4.8443,206.52,206.46,13.79334157]
[1755933494308,7.6543,206.52,206.48,2.78]
[1755933494509,7.6543,206.52,206.49,9.1590354]
[1755933494706,7.6543,206.52,206.5,4.48968588]
[1755933495008,7.6543,206.52,206.51,4.48968588]
[1755933496012,4.8452,206.48,206.45,2.78]
[1755933496207,4.8452,206.48,206.46,11.03140836]
[1755933496411,4.8452,206.48,206.47,9.176228]
[1755933499417,4.8452,206.48,206.47,4.67149735]
[1755933499714,4.8452,206.48,206.47,9.18163882]
[1755933499910,4.8452,206.48,206.47,4.67402681]
[1755933500112,4.8452,206.48,206.47,9.18121101]
[1755933500915,7.6552,206.48,206.47,4.5071842]
[1755933501712,4.8459,206.45,206.39,149.49810229]
[1755933501918,4.8459,206.45,206.4,11.04607436]
[1755933502111,4.8459,206.45,206.41,11.04607436]
[1755933502318,4.8459,206.45,206.42,11.04607436]
[1755933502518,4.8459,206.45,206.44,2.78]
[1755933502716,4.8454,206.47,206.44,11.96843702]
[1755933502916,4.8454,206.47,206.45,9.18843702]
[1755933503116,4.8454,206.47,206.46,4.51074463]
[1755933504321,7.6554,206.47,206.46,4.51074463]
[1755933504723,4.87683515,206.49,206.46,7.29074463]
[1755933504919,4.87683515,206.49,206.46,2.78]
[1755933505318,0.03193515,206.49,206.44,2.78]
[1755933505518,0.03193515,206.49,206.45,4.50595937]
[1755933505719,0.03193515,206.49,206.46,7.28595937]
[1755933505920,0.03193515,206.49,206.46,2.78]
[1755933506220,0.03193515,206.49,206.47,4.50580137]
[1755933506421,0.03193515,206.49,206.48,4.50580137]
[1755933506827,0.03193515,206.49,206.43,4.846]
[1755933507027,0.03193515,206.49,206.46,2.78]
[1755933507217,0.03193515,206.49,206.47,4.50357668]
[1755933507420,0.03193515,206.49,206.46,2.78]
[1755933507721,4.87683515,206.49,206.47,4.50290166]
[1755933507926,4.87683515,206.49,206.46,2.78]
[1755933508120,4.87683515,206.49,206.47,4.50290166]
[1755933508423,0.03193515,206.49,206.47,2.78]
[1755933508622,0.03193515,206.49,206.48,4.50293348]
[1755933508828,0.03193515,206.49,206.48,7.28293348]
[1755933509219,0.03193515,206.49,206.48,2.78]
[1755933509825,0.03193515,206.49,206.48,7.28307993]
[1755933510523,0.03193515,206.49,206.48,4.50307993]
[1755933510730,0.03193515,206.49,206.45,4.8456]
[1755933510924,0.03193515,206.49,206.47,2.78]
[1755933512330,0.03193515,206.49,206.48,4.50416795]
[1755933512629,0.03193515,206.49,206.47,2.78]
[1755933512630,4.87693515,206.49,206.47,2.78]
[1755933512828,0.03193515,206.49,206.48,4.50435802]
[1755933513023,0.03193515,206.49,206.48,7.28435802]
[1755933513830,2.64193515,206.49,206.48,4.50435802]
[1755933514128,2.64193515,206.49,206.41,2.76]
[1755933514331,2.64193515,206.49,206.43,2.76]
[1755933514529,2.64193515,206.49,206.45,2.76]
[1755933514725,2.64193515,206.49,206.46,4.50743665]
[1755933514925,7.48693515,206.49,206.47,4.50743665]
[1755933515125,2.64193515,206.49,206.45,2.76]
[1755933515430,2.64193515,206.49,206.46,4.50886216]
[1755933515630,4.845,206.48,206.47,4.50886216]
[1755933517830,4.845,206.48,206.47,4.50982599]
[1755933518132,2.64193515,206.49,206.47,4.50982599]
[1755933518429,2.64193515,206.49,206.45,2.76]
[1755933518629,2.64193515,206.49,206.46,9.18723453]
[1755933518831,2.64193515,206.49,206.47,4.51014665]
[1755933519032,2.64193515,206.49,206.48,4.50999593]
[1755933519432,0.03193515,206.49,206.48,4.50999593]
[1755933520731,0.03193515,206.49,206.48,7.26999593]
[1755933522732,0.03193515,206.49,206.48,4.50999593]
[1755933523332,0.03193515,206.49,206.48,9.33054651]
[1755933524430,0.03193515,206.49,206.48,4.50999593]
[1755933524638,4.845,206.48,206.47,2.76]
[1755933524932,4.845,206.48,206.47,12.09999769]
[1755933525328,7.455,206.48,206.47,4.51511446]
[1755933527239,4.8456,206.46,206.44,2.76]
[1755933527435,4.8456,206.46,206.45,9.37750737]
[1755933527834,4.8456,206.46,206.45,9.37770213]
[1755933528037,4.8456,206.46,206.45,12.13770213]
[1755933532340,7.4551,206.48,206.45,12.13770213]
[1755933532535,4.8451,206.48,206.47,2.76]
[1755933534039,0.03193515,206.49,206.43,4.8461]
[1755933534243,0.03193515,206.49,206.48,2.76]
[1755933535344,0.03193515,206.49,206.48,7.30449947]
[1755933535541,0.03193515,206.49,206.48,12.16001785]
[1755933536340,0.03193515,206.49,206.48,2.76]
[1755933536544,0.03193515,206.49,206.48,12.15883902]
[1755933537048,0.03193515,206.49,206.48,14.01982305]
[1755933537249,0.03193515,206.49,206.48,12.15823317]
[1755933538851,0.03193515,206.49,206.48,14.01954024]
[1755933542052,2.61,206.58,206.49,2.76]
[1755933542249,2.61,206.58,206.5,11.25954024]
[1755933542447,2.61,206.58,206.51,11.25824843]
[1755933542651,2.61,206.58,206.52,12.15823317]
[1755933542848,2.61,206.58,206.54,2.76]
[1755933543052,4.8433,206.56,206.51,2.76]
[1755933543240,4.8433,206.56,206.53,2.62]
[1755933543445,4.8433,206.56,206.54,12.06571435]
[1755933543648,4.8433,206.56,206.55,7.15758766]
[1755933543851,4.8433,206.56,206.54,0.03269122]
[1755933544850,4.8433,206.56,206.55,4.53669916]
[1755933545051,4.8433,206.56,206.55,4.53748111]
[1755933545252,4.8433,206.56,206.55,7.15748111]
[1755933545650,4.8428,206.58,206.55,4.53748111]
[1755933545854,4.8428,206.58,206.56,2.62]
[1755933550457,7.5228,206.58,206.54,0.03269122]
[1755933550657,7.5228,206.58,206.55,2.62]
[1755933550952,7.5231,206.57,206.55,2.62]
[1755933551154,7.5231,206.57,206.54,2.65269122]
[1755933556460,2.68,206.56,206.54,0.03269122]
[1755933557163,7.5231,206.57,206.54,2.65269122]
[1755933557962,4.8431,206.57,206.56,2.62]
[1755933558164,4.8426,206.59,206.56,2.62]
[1755933558366,2.68,206.62,206.54,0.03269122]
[1755933559767,2.68,206.57,206.54,2.65269122]
[1755933560774,7.5231,206.57,206.54,2.65269122]
[1755933563275,2.68,206.55,206.54,0.03269122]
[1755933570177,4.8433,206.56,206.54,0.03269122]
[1755933570380,2.68,206.55,206.54,0.03269122]
[1755933574686,2.68,206.6,206.54,7.27610271]
[1755933574885,2.68,206.6,206.54,0.03269122]
[1755933575489,2.68,206.57,206.54,0.03269122]
[1755933575985,2.68,206.56,206.54,0.03269122]
[1755933576181,2.68,206.55,206.54,0.03269122]
[1755933576386,2.68,206.55,206.54,9.54827995]
[1755933576782,2.68,206.55,206.54,4.99306377]
[1755933577182,2.68,206.55,206.54,9.55016311]
[1755933580988,2.68,206.55,206.54,4.99306377]
[1755933581189,2.68,206.55,206.54,9.56955859]
[1755933581683,6.54109557,206.55,206.46,2.69]
[1755933581889,2.68,206.54,206.47,11.40377411]
[1755933582188,2.68,206.54,206.48,9.53915409]
[1755933582380,7.5246,206.5,206.49,9.53915409]
[1755933584090,7.5243,206.52,206.49,9.53915409]
[1755933584289,7.5243,206.52,206.5,9.42363226]
[1755933584480,7.5243,206.52,206.51,9.42363226]
[1755933585190,7.5243,206.52,206.51,9.42161374]
[1755933585693,2.71265968,206.54,206.51,9.42161374]
[1755933585878,2.71265968,206.54,206.52,9.42161374]
[1755933586083,2.71265968,206.54,206.53,4.56451134]
[1755933586283,2.71265968,206.54,206.51,2.69]
[1755933586488,2.68,206.53,206.52,9.46918736]
[1755933587484,2.68,206.53,206.52,9.46911941]
[1755933588489,2.68,206.53,206.52,4.56870381]
[1755933588890,2.68,206.53,206.45,2.69]
[1755933589191,2.68,206.53,206.46,11.3333172]
[1755933589389,2.68,206.53,206.45,2.69]
[1755933589390,4.8449,206.49,206.47,9.47014297]
[1755933589593,4.8449,206.49,206.48,9.47014297]
[1755933590090,7.5244,206.51,206.48,9.47014297]
[1755933590288,7.5244,206.51,206.49,9.47014297]
[1755933590589,7.5244,206.51,206.45,2.69]
[1755933590791,7.5244,206.51,206.47,2.69]
[1755933590993,7.5244,206.51,206.48,9.46794801]
[1755933591192,7.5244,206.51,206.49,9.46794801]
[1755933591386,4.87640676,206.51,206.49,2.69]
[1755933591789,7.55640676,206.51,206.42,2.69]
[1755933591987,7.55640676,206.51,206.44,2.69]
[1755933592187,7.55640676,206.51,206.45,11.32895689]
[1755933592389,7.55640676,206.51,206.46,9.46648818]
[1755933592687,7.55640676,206.51,206.48,2.69]
[1755933592884,10.74656114,206.63,206.5,2.69]
[1755933593190,2.68,206.65,206.56,7.533]
[1755933593384,2.68,206.65,206.57,9.46648818]
[1755933593584,2.68,206.65,206.58,9.46039167]
[1755933593785,2.68,206.65,206.59,9.46039167]
[1755933594089,2.68,206.65,206.6,9.46039167]
[1755933594291,95.15298065,206.66,206.61,9.46039167]
[1755933594292,2.68,206.64,206.61,9.46039167]
[1755933594489,2.68,206.63,206.62,9.46039167]
[1755933595190,4.8415,206.64,206.62,9.46039167]
[1755933595397,7.5215,206.64,206.63,9.46039167]
[1755933596600,7.5215,206.64,206.63,9.94095119]
[1755933597997,8.0015,206.64,206.63,9.94095119]
[1755933598598,7.522,206.61,206.6,0.03436073]
[1755933598793,7.522,206.61,206.6,10.18167935]
[1755933599702,7.522,206.61,206.6,10.18209978]
[1755933600000,7.522,206.61,206.6,5.34387415]
[1755933600200,7.522,206.61,206.6,10.18197643]
[1755933601201,7.522,206.61,206.6,5.34387415]
[1755933601500,127.842,206.61,206.6,0.03436073]
[1755933605296,128.322,206.61,206.6,0.00242558]
[1755933605893,4.8434,206.55,206.5,2.57]
[1755933606093,4.8434,206.55,206.51,9.87178737]
[1755933606297,4.8434,206.55,206.47,4.8451]
[1755933606298,4.8434,206.55,206.53,2.57]
[1755933606502,4.8434,206.55,206.54,9.87178737]
[1755933607697,120.3,206.56,206.54,5.13608306]
[1755933607902,120.3,206.56,206.55,9.87146619]
[1755933609308,120.3,206.56,206.55,9.87158753]
[1755933609700,120.3,206.56,206.55,4.73550447]
[1755933611206,122.85,206.56,206.55,4.73550447]
[1755933612604,0.03515365,206.57,206.55,9.87156887]
[1755933612904,120.31515365,206.57,206.56,2.57]
[1755933613905,120.31515365,206.57,206.56,7.30475241]
[1755933615103,0.03515365,206.57,206.56,12.41708953]
[1755933616799,0.03515365,206.57,206.56,7.68233712]
[1755933616998,0.03515365,206.57,206.56,12.49503978]
[1755933617503,0.03515365,206.57,206.56,12.4938014]
[1755933617701,0.03515365,206.57,206.56,7.63203296]
[1755933617900,0.03515365,206.57,206.56,12.4938014]
[1755933624204,0.03515365,206.57,206.56,9.9238014]
[1755933625901,0.03515365,206.57,206.56,4.86176844]
[1755933626102,0.03515365,206.57,206.56,4.72497554]
[1755933626806,4.8432,206.56,206.54,2.57]
[1755933627007,4.8432,206.56,206.55,4.72556932]
[1755933629109,4.8432,206.56,206.54,2.57]
[1755933629313,0.03515365,206.57,206.55,4.7273892]
[1755933629613,9.6817,206.66,206.57,2.57]
[1755933629614,2.55,206.66,206.57,2.57]
[1755933629911,7.3909,206.66,206.59,2.57]
[1755933630102,7.3909,206.66,206.6,9.7876006]
[1755933630301,7.3909,206.66,206.61,9.7876006]
[1755933630500,7.3909,206.66,206.62,7.2973892]
[1755933630705,7.3909,206.66,206.62,2.57]
[1755933632011,4.8409,206.66,206.62,2.57]
[1755933632314,7.3909,206.66,206.62,2.57]
[1755933632506,2.55,206.67,206.61,0.03226946]
[1755933633611,4.8417,206.63,206.61,0.03226946]
[1755933637510,7.6417,206.63,206.61,0.03226946]
[1755933643419,4.8417,206.63,206.61,0.03226946]
[1755933643604,2.8,206.63,206.61,0.03226946]
[1755933643809,2.8,206.63,206.62,9.87149244]
[1755933644108,2.8,206.66,206.62,4.74622372]
[1755933644310,2.8,206.66,206.61,0.03226946]
[1755933645110,2.8,206.62,206.61,0.03226946]
[1755933648020,2.8,206.62,206.61,4.76636576]
[1755933649417,2.8,206.64,206.61,4.76636576]
[1755933649620,2.8,206.64,206.62,9.83999203]
[1755933649822,2.8,206.64,206.63,4.7340963]
[1755933650418,2.8,206.64,206.63,9.8387497]
[1755933651621,2.8,206.64,206.63,4.7340963]
[1755933652121,4.8415,206.63,206.61,0.03226946]
[1755933652321,2.8,206.62,206.61,0.03226946]
[1755933652919,2.8,206.62,206.54,2.54]
[1755933653116,120.12,206.61,206.55,5.05546517]
[1755933653420,2.8,206.58,206.56,5.05546517]
[1755933653617,120.12,206.61,206.57,5.05546517]
[1755933653815,2.8,206.58,206.54,2.54]
[1755933654124,2.8,206.58,206.55,5.05592001]
[1755933654424,2.8,206.58,206.56,5.05592001]
[1755933654425,2.8,206.57,206.56,5.05592001]
[1755933657718,0.03214562,206.58,206.56,7.59592001]
[1755933657918,0.03214562,206.58,206.57,5.05592001]
[1755933660619,0.03214562,206.58,206.57,5.05715006]
[1755933662033,0.03214562,206.58,206.56,2.54]
[1755933662328,0.03214562,206.58,206.57,5.05673352]
[1755933663128,0.03214562,206.58,206.57,7.59673352]
[1755933664122,0.03214562,206.58,206.57,12.29627739]
[1755933664321,0.03214562,206.58,206.57,7.23954387]
[1755933667029,0.03214562,206.58,206.51,4.8442]
[1755933667333,0.03214562,206.58,206.53,2.55]
[1755933667533,4.87494562,206.58,206.55,2.55]
[1755933667735,4.87494562,206.58,206.56,12.30556024]
[1755933667934,4.87494562,206.58,206.57,4.69897714]
[1755933668131,4.87494562,206.58,206.54,2.55]
[1755933668333,0.03214562,206.58,206.56,2.55]
[1755933668529,0.03214562,206.58,206.57,12.30360707]
[1755933669031,2.77214562,206.58,206.54,2.55]
[1755933669237,2.77214562,206.58,206.55,9.82829834]
[1755933669432,2.74,206.58,206.56,9.82829834]
[1755933669634,2.74,206.58,206.56,2.55]
[1755933670133,2.74,206.59,206.56,2.55]
[1755933670328,7.5826,206.59,206.56,2.55]
[1755933670532,7.61485386,206.59,206.56,2.55]
[1755933670733,0.03225386,206.59,206.51,2.55]
[1755933670933,0.03225386,206.59,206.53,2.55]
[1755933671133,120.1,206.61,206.55,2.55]
[1755933671336,2.74,206.6,206.56,12.37726794]
[1755933671530,0.03202874,206.58,206.56,2.55]
[1755933671927,0.03202874,206.58,206.57,2.55]
[1755933672131,2.77202874,206.58,206.53,2.55]
[1755933672329,2.77202874,206.58,206.55,2.55]
[1755933672634,2.77202874,206.58,206.56,4.69824801]
[1755933672842,2.74,206.58,206.55,2.55]
[1755933673035,2.74,206.58,206.56,4.69844846]
[1755933673240,2.74,206.58,206.55,2.55]
[1755933673542,7.5828,206.58,206.56,4.69835448]
[1755933673730,7.5828,206.58,206.55,2.55]
[1755933673936,7.5828,206.58,206.56,4.69835449]
[1755933674136,7.5828,206.58,206.55,2.55]
[1755933675742,7.5831,206.57,206.56,4.71539673]
[1755933676041,7.5831,206.57,206.5,2.55]
[1755933676240,7.5831,206.57,206.51,9.85244402]
[1755933676439,7.5831,206.57,206.52,9.85244402]
[1755933676640,7.5831,206.57,206.54,2.55]
[1755933676843,7.5831,206.57,206.55,9.85244402]
[1755933677042,7.5831,206.57,206.54,2.55]
[1755933677234,7.5831,206.57,206.55,9.85202753]
[1755933677434,0.03083729,206.59,206.49,4.8448]
[1755933677435,2.74,206.55,206.49,2.55]
[1755933677639,2.74,206.55,206.51,2.55]
[1755933677843,2.74,206.55,206.52,12.40257285]
[1755933678038,2.74,206.55,206.53,9.85257285]
[1755933678242,2.74,206.55,206.52,2.55]
[1755933678438,7.5837,206.54,206.53,9.85139729]
[1755933678846,4.8437,206.54,206.53,9.85139729]
[1755933679345,4.8437,206.54,206.45,2.55]
[1755933679346,4.8443,206.51,206.45,2.55]
[1755933679549,2.74,206.54,206.46,9.79376261]
[1755933679841,120.08,206.55,206.48,2.55]
[1755933680037,124.9229,206.57,206.5,2.55]
[1755933680345,0.03144211,206.52,206.51,7.26493048]
[1755933680541,124.9229,206.57,206.51,12.04234192]
[1755933680735,124.9229,206.57,206.52,4.71496955]
[1755933680942,0.0322159,206.54,206.53,7.26458718]
[1755933687347,0.0322159,206.54,206.53,12.12773925]
[1755933689554,0.0322159,206.54,206.53,12.1303064]
[1755933690156,0.0322159,206.54,206.53,12.13037575]
[1755933690354,0.0322159,206.54,206.53,12.13131274]
[1755933692754,0.0322159,206.54,206.53,12.13301986]
[1755933695961,0.0322159,206.54,206.53,12.29629953]
[1755933698661,0.0322159,206.54,206.53,7.26784345]
[1755933698865,0.0322159,206.54,206.53,12.30823774]
[1755933699364,0.0322159,206.54,206.53,12.30847464]
[1755933699558,0.0322159,206.54,206.53,12.30866975]
[1755933701866,0.0322159,206.54,206.53,12.19230231]
[1755933705465,0.0322159,206.54,206.53,4.72523034]
[1755933705667,4.844,206.53,206.49,2.65]
[1755933705866,4.844,206.53,206.51,2.65]
[1755933706071,4.844,206.53,206.52,12.41172693]
[1755933708073,4.844,206.53,206.52,12.41784338]
[1755933708475,7.564,206.53,206.52,9.76784338]
[1755933708672,7.564,206.53,206.52,9.76847304]
[1755933712878,4.844,206.53,206.52,9.76847304]
[1755933713679,4.844,206.53,206.52,12.41847304]
[1755933714076,4.844,206.53,206.52,7.68576466]
[1755933714281,4.844,206.53,206.52,12.41710245]
[1755933717178,4.844,206.53,206.52,2.65]
[1755933717380,4.844,206.53,206.52,7.38087219]
[1755933720080,4.844,206.53,206.52,12.41372732]
[1755933720485,8.70636711,206.53,206.52,7.38087219]
[1755933721183,8.70636711,206.53,206.52,4.73087219]
[1755933721690,4.8443,206.51,206.49,2.65]
[1755933721888,4.8443,206.51,206.5,4.7302901]
[1755933722088,3.86236711,206.53,206.5,4.7302901]
[1755933722291,3.86236711,206.53,206.52,2.65]
[1755933722588,3.86236711,206.53,206.52,7.3802901]
[1755933722779,3.86236711,206.53,206.52,4.7302901]
[1755933724387,2.68,206.51,206.37,2.75]
[1755933724583,2.68,206.49,206.38,5.03345655]
[1755933724784,2.68,206.49,206.33,2.75]
[1755933725092,4.8479,206.36,206.34,5.03497096]
[1755933725291,4.8479,206.36,206.33,2.75]
[1755933725591,119.92,206.38,206.23,0.84316623]
[1755933725786,3.86236711,206.37,206.36,2.75]
[1755933726187,119.92,206.38,206.36,2.75]
[1755933726790,7.55854667,206.39,206.32,2.75]
[1755933727093,7.55854667,206.39,206.24,24.2532]
[1755933727094,4.8482,206.35,206.24,2.75]
[1755933727285,4.8482,206.35,206.23,5.69386623]
[1755933727286,4.8482,206.35,206.26,2.75]
[1755933727988,8.72686573,206.37,206.26,2.75]
[1755933728184,0.03152966,206.33,206.26,2.75]
[1755933731596,0.03152966,206.33,206.28,2.75]
[1755933731992,2.68,206.43,206.28,2.75]
[1755933732287,4.8477,206.37,206.29,2.75]
[1755933732484,2.68,206.39,206.23,0.84316623]
[1755933732791,2.68,206.39,206.25,2.75]
[1755933733693,24.2374,206.38,206.3,0.03368081]
[1755933735294,2.68,206.37,206.3,0.03368081]
[1755933735488,4.8483,206.34,206.3,0.03368081]
[1755933735694,4.8483,206.34,206.31,2.75]
[1755933736091,24.2481,206.29,206.12,325.62]
[1755933736287,6.04686573,206.24,206.14,2.75]
[1755933736596,2.68,206.19,206.1,2.75]
[1755933736791,4.8525,206.17,206.1,2.75]
[1755933738598,0.03148755,206.16,206.1,2.75]
[1755933750500,0.03148755,206.16,206.11,4.8536]
[1755933750699,0.03148755,206.16,206.12,2.75]
[1755933751110,0.03148755,206.16,206.13,2.75]
[1755933751303,0.03148755,206.16,206.15,2.75]
[1755933751506,0.03148755,206.16,206.1,2.75]
[1755933752606,0.03148755,206.16,206.14,4.8528]
[1755933752805,0.03148755,206.16,206.15,2.75]
[1755933757604,2.72148755,206.16,206.09,8.61686573]
[1755933757809,2.72148755,206.16,206.09,2.57]
[1755933758209,7.57418755,206.16,206.09,2.57]
[1755933758605,2.72148755,206.16,206.09,2.57]
[1755933758806,2.72148755,206.16,206.09,7.424]
[1755933759314,2.72148755,206.16,206.09,2.57]
[1755933762605,0.03148755,206.16,206.07,112.20518133]
[1755933762810,2.69,206.15,206.07,112.20518133]
[1755933763010,2.69,206.15,206.05,2.57]
[1755933763510,2.69,206.13,205.96,2.57]
[1755933763717,2.69,206.13,205.97,1.83646421]
[1755933763917,2.69,206.13,205.98,2.57]
[1755933764312,2.72276669,206.07,205.98,7.4267]
[1755933765018,2.72276669,206.07,205.98,2.57]
[1755933766113,2.72276669,206.07,205.98,7.4266]
[1755933766312,2.72276669,206.07,205.98,4.8566]
[1755933767407,2.72276669,206.07,205.96,7.4272]
[1755933767809,2.72276669,206.07,205.96,2.57]
[1755933768010,2.72276669,206.07,205.99,2.57]
[1755933768619,2.72276669,206.07,205.99,7.4263]
[1755933768813,2.72276669,206.07,205.99,2.57]
[1755933769017,0.03276669,206.07,206.01,2.57]
[1755933769208,0.03276669,206.07,206.01,7.4258]
[1755933769614,0.03276669,206.07,206.01,2.57]
[1755933769817,2.72276669,206.07,205.96,2.57]
[1755933770118,2.72276669,206.07,205.97,6.27823795]
[1755933770418,2.72276669,206.07,205.98,1.84477718]
[1755933770622,2.72276669,206.07,205.98,2.57]
[1755933771015,2.72276669,206.07,205.99,10.23115485]
[1755933771228,2.72276669,206.07,206.0,1.84460492]
[1755933771518,2.72276669,206.07,205.98,2.57]
[1755933771711,2.72276669,206.07,205.99,1.8453452]
[1755933771910,2.72276669,206.07,205.98,2.57]
[1755933772120,2.72276669,206.07,205.99,1.84531388]
[1755933772316,2.72276669,206.07,206.0,1.84530212]
[1755933772515,7.57766669,206.07,205.98,7.4267]
[1755933772715,2.72276669,206.07,205.99,6.28019975]
[1755933772914,2.72276669,206.07,206.0,1.84536476]
[1755933773121,2.72276669,206.07,205.98,2.57]
[1755933773317,2.72276669,206.07,205.99,11.13787918]
[1755933773516,2.72276669,206.07,206.0,1.84570197]
[1755933773716,2.72276669,206.07,205.99,4.8564]
[1755933773916,2.72276669,206.07,206.0,1.84576462]
[1755933774119,2.72276669,206.07,205.99,4.8564]
[1755933774415,2.72276669,206.07,206.0,1.84624065]
[1755933774620,2.72276669,206.07,206.0,4.8561]
[1755933777222,2.72276669,206.07,206.01,1.84917395]
[1755933777415,2.72276669,206.07,206.0,4.8561]
[1755933777616,6.04686573,206.04,205.92,2.57]
[1755933777816,6.04686573,206.04,205.93,10.25847782]
[1755933778014,2.69,206.03,205.94,6.29464568]
[1755933778320,2.69,206.03,205.95,1.84963523]
[1755933778524,2.69,206.03,205.96,1.84963523]
[1755933778713,0.03072414,206.01,205.92,2.57]
[1755933778914,0.03072414,206.01,205.93,6.23487489]
[1755933778915,2.69,206.0,205.93,6.23487489]
[1755933779118,2.69,206.0,205.94,1.8503231]
[1755933779318,2.69,205.99,205.95,1.8503231]
[1755933779621,2.69,205.99,205.92,7.4281]
[1755933779824,2.69,205.99,205.93,6.23783066]
[1755933780025,2.69,205.99,205.94,1.85124555]
[1755933780225,2.69,205.98,205.89,4.8587]
[1755933780520,2.69,205.98,205.91,2.57]
[1755933780725,2.69,205.98,205.92,10.21588106]
[1755933780921,2.69,206.02,205.93,1.85329613]
[1755933781121,2.69,205.96,205.94,1.85329613]
[1755933781421,2.69,205.96,205.91,2.57]
[1755933781622,0.03333379,205.97,205.92,1.85390108]
[1755933781823,0.03333379,205.97,205.95,2.57]
[1755933782023,2.69,206.0,205.95,2.57]
[1755933782223,7.5458,206.03,205.94,2.57]
[1755933782828,2.69,206.0,205.95,1.85172327]
[1755933783026,2.69,206.0,205.9,2.57]
[1755933783321,2.69,206.0,205.91,6.23972736]
[1755933783522,2.69,206.0,205.88,24.2955]
[1755933783523,2.69,206.0,205.93,2.59]
[1755933783726,2.69,206.0,205.94,1.85105034]
[1755933783927,2.69,206.0,205.93,2.59]
[1755933784123,2.69,206.0,205.94,1.85101453]
[1755933784325,2.69,206.0,205.93,2.59]
[1755933784525,2.69,206.0,205.94,1.85043785]
[1755933784827,2.69,206.0,205.93,2.59]
[1755933785123,2.67,206.04,205.95,2.59]
[1755933785327,2.67,206.04,205.97,2.59]
[1755933785631,0.03188787,206.02,205.98,4.8566]
[1755933785828,0.03188787,206.02,205.94,24.2885]
[1755933786026,0.03188787,206.02,205.96,2.59]
[1755933786231,0.03188787,206.02,205.97,1.84975899]
[1755933786527,0.03188787,206.02,205.96,2.59]
[1755933786723,0.03188787,206.02,205.98,2.59]
[1755933786928,0.03188787,206.02,205.95,24.2873]
[1755933787232,0.03188787,206.02,206.0,7.4461]
[1755933787431,0.03188787,206.02,206.0,4.8561]
[1755933787628,2.67,206.15,206.02,2.59]
[1755933787925,2.67,206.19,206.05,6.04686573]
[1755933788129,2.67,206.19,206.06,2.59]
[1755933788627,2.67,206.15,206.07,4.8546]
[1755933789731,2.67,206.15,206.09,0.0319074]
[1755933791434,2.67,206.15,206.09,4.8860074]
[1755933791621,2.67,206.15,206.09,0.0319074]